fUST/lending_fUST_20250707
["ID","MTS","AMOUNT","RATE_DAILY","PERIOD"]
[370106500,1751886646385,-225.48264019,0.000199,2]
[370106501,1751886646394,-460.0,0.00019905,2]
[370106502,1751886646404,-460.0,0.00019905,2]
[370106503,1751886646413,-472.21646281,0.00019905,2]
[370106504,1751886646423,-460.0,0.00019905,2]
[370106505,1751886646433,-460.0,0.00019905,2]
[370106506,1751886646442,-460.0,0.00019905,2]
[370106507,1751886646451,-460.0,0.00019905,2]
[370106508,1751886646461,-460.0,0.00019905,2]
[370106509,1751886646470,-460.0,0.00019934,2]
[370106510,1751886646480,-460.0,0.00019934,2]
[370106511,1751886646489,-460.0,0.00019934,2]
[370106512,1751886646499,-460.0,0.00019934,2]
[370106513,1751886646509,-460.0,0.00019934,2]
[370106514,1751886646518,-460.0,0.00019934,2]
[370106515,1751886646528,-151.0,0.00019934,2]
[370106516,1751886646537,-460.0,0.00019934,2]
[370106517,1751886646546,-460.0,0.00019934,2]
[370106518,1751886646556,-460.0,0.00019934,2]
[370106519,1751886646565,-151.0,0.00019934,2]
[370106520,1751886646574,-151.0,0.00019934,2]
[370106521,1751886646583,-460.0,0.00019934,2]
[370106522,1751886646592,-151.0,0.00019934,2]
[370106523,1751886646602,-460.0,0.00019934,2]
[370106524,1751886646611,-460.0,0.00019934,2]
[370106525,1751886646619,-155.47,0.00019934,2]
[370106526,1751886646629,-460.0,0.00019936,2]
[370106527,1751886646638,-460.0,0.00019936,2]
[370106528,1751886646647,-460.0,0.00019936,2]
[370106529,1751886646656,-460.0,0.00019936,2]
[370106530,1751886646666,-460.0,0.00019936,2]
[370106531,1751886646675,-460.0,0.00019937,2]
[370106532,1751886646684,-460.0,0.00019937,2]
[370106533,1751886646694,-347.78349131,0.00019937,2]
[370106534,1751886646703,-460.0,0.00019937,2]
[370106535,1751886646712,-461.49882156,0.00019937,2]
[370106536,1751886646721,-460.0,0.00019937,2]
[370106537,1751886646730,-460.0,0.00019937,2]
[370106538,1751886646739,-526.25743062,0.00019937,2]
[370106539,1751886646750,-406.90028393,0.00019937,2]
[370106540,1751886646759,-460.0,0.00019937,2]
[370106541,1751886646768,-460.0,0.00019937,2]
[370106542,1751886646777,-460.0,0.00019937,2]
[370106543,1751886646787,-460.0,0.00019937,2]
[370106544,1751886646796,-460.0,0.00019937,2]
[370106545,1751886646805,-460.0,0.00019937,2]
[370106546,1751886646814,-460.0,0.00019937,2]
[370106547,1751886646823,-244.45467458,0.00019937,2]
[370106548,1751886646833,-460.0,0.00019937,2]
[370106549,1751886646842,-606.54245627,0.00019937,2]
[370106550,1751886646851,-460.0,0.00019937,2]
[370106551,1751886646860,-258.881302,0.00019937,2]
[370106552,1751886646870,-460.0,0.00019937,2]
[370106553,1751886646879,-460.9237964,0.00019937,2]
[370106554,1751886646889,-460.0,0.00019937,2]
[370106555,1751886646899,-460.0,0.00019937,2]
[370106556,1751886646910,-460.0,0.00019937,2]
[370106557,1751886646919,-455.0,0.00019937,2]
[370106558,1751886646928,-151.0,0.00019937,2]
[370106559,1751886646938,-504.11084752,0.00019937,2]
[370106560,1751886646947,-460.0,0.00019937,2]
[370106561,1751886646957,-166.914918,0.00019937,2]
[370106562,1751886646966,-151.0,0.00019937,2]
[370106563,1751886646975,-460.0,0.00019937,2]
[370106564,1751886646984,-161.80012645,0.00019937,2]
[370106565,1751886646993,-300.0,0.0002,2]
[370106566,1751886647003,-333.55,0.00020007,2]
[370106567,1751886647012,-153.83938,0.00020007,2]
[370106568,1751886647021,-461.34427672,0.00020007,2]
[370106569,1751886647031,-460.0,0.00020007,2]
[370106570,1751886647040,-386.13983266,0.00020007,2]
[370106571,1751886647049,-460.0,0.00020007,2]
[370106572,1751886647058,-460.0,0.00020007,2]
[370106573,1751886647068,-205.45,0.00020007,2]
[370106574,1751886647078,-460.0,0.00020007,2]
[370106575,1751886647087,-460.0,0.00020007,2]
[370106576,1751886647097,-460.0,0.00020007,2]
[370106577,1751886647106,-462.31020279,0.00020009,2]
[370106578,1751886647116,-460.0,0.00020009,2]
[370106579,1751886647125,-460.0,0.00020009,2]
[370106580,1751886647134,-460.0,0.00020009,2]
[370106581,1751886647143,-460.0,0.00020009,2]
[370106582,1751886647152,-215.21338352,0.00020028,2]
[370106583,1751886647162,-160.0,0.00020028,2]
[370106584,1751886647171,-12584.46609586,0.00020028,2]
[370106585,1751886647181,-160.0,0.00020028,2]
[370106586,1751886647191,-837.79946008,0.00020028,2]
[370106587,1751886647200,-848.27993403,0.00020028,2]
[370106588,1751886647213,-160.0,0.00020028,2]
[370106589,1751886647222,-214.06929976,0.00020028,2]
[370106590,1751886647231,-230.48668418,0.00020028,2]
[370106591,1751886647240,-160.0,0.00020028,2]
[370106592,1751886647250,-160.0,0.00020028,2]
[370106593,1751886647260,-160.0,0.00020028,2]
[370106594,1751886647269,-160.0,0.00020028,2]
[370106595,1751886647279,-160.0,0.00020028,2]
[370106596,1751886647291,-460.0,0.00020109,2]
[370106597,1751886647300,-460.0,0.00020109,2]
[370106598,1751886647310,-1000.0,0.00020121,2]
[370106599,1751886647319,-1000.0,0.00020121,2]
[370106600,1751886647328,-1024.06599004,0.00020121,2]
[370106601,1751886647337,-460.0,0.00020167,2]
[370106602,1751886647347,-1409.43,0.00020167,2]
[370106603,1751886647356,-460.0,0.00020179,2]
[370106604,1751886647366,-460.0,0.00020179,2]
[370106605,1751886647375,-460.0,0.00020179,2]
[370106606,1751886647385,-460.0,0.00020179,2]
[370106607,1751886647395,-460.0,0.00020179,2]
[370106608,1751886647405,-223.88,0.00020208,2]
[370106609,1751886647414,-460.0,0.00020208,2]
[370106610,1751886647424,-460.0,0.00020208,2]
[370106611,1751886647434,-460.0,0.00020211,2]
[370106612,1751886647443,-347.52215432,0.00020211,2]
[370106613,1751886647453,-460.0,0.00020281,2]
[370106614,1751886647463,-460.0,0.00020281,2]
[370106615,1751886647504,-460.0,0.00020281,2]
[370106616,1751886647514,-460.0,0.00020283,2]
[370106617,1751886647524,-460.0,0.00020283,2]
[370106618,1751886647533,-460.0,0.00020283,2]
[370106619,1751886647542,-460.0,0.00020283,2]
[370106620,1751886647551,-460.0,0.00020383,2]
[370106621,1751886647561,-460.0,0.00020383,2]
[370106622,1751886647570,-460.0,0.00020441,2]
[370106623,1751886647579,-1409.43,0.00020441,2]
[370106624,1751886647589,-198.72,0.00020453,2]
[370106625,1751886647597,-460.0,0.00020453,2]
[370106626,1751886647608,-460.0,0.00020453,2]
[370106627,1751886647618,-460.0,0.00020453,2]
[370106628,1751886647629,-166.53,0.00020453,2]
[370106629,1751886647640,-460.0,0.00020482,2]
[370106630,1751886647650,-460.0,0.00020482,2]
[370106631,1751886647661,-460.0,0.00020555,2]
[370106632,1751886647671,-460.0,0.00020555,2]
[370106633,1751886647681,-460.0,0.00020555,2]
[370106634,1751886647690,-460.0,0.00020557,2]
[370106635,1751886647699,-460.0,0.00020557,2]
[370106636,1751886647708,-460.0,0.00020557,2]
[370106637,1751886647717,-460.0,0.00020557,2]
[370106638,1751886647726,-433.861,0.0002063,2]
[370106639,1751886647735,-432.87,0.00020657,2]
[370106640,1751886647744,-243.31,0.00020657,2]
[370106641,1751886647753,-1500.0,0.00020668,2]
[370106642,1751886647763,-1500.0,0.00020668,2]
[370106643,1751886647772,-508.16,0.00020705,3]
[370106644,1751886647781,-1265.38,0.00020705,3]
[370106645,1751886647790,-632.7,0.00020705,3]
[370106646,1751886647799,-316.34,0.00020705,3]
[370106647,1751886647808,-460.0,0.00020715,2]
[370106648,1751886647817,-1409.43,0.00020715,2]
[370106649,1751886647826,-1142.61646569,0.00020719,2]
[370106650,1751886647835,-460.0,0.00020727,2]
[370106651,1751886647845,-460.0,0.00020727,2]
[370106652,1751886647856,-460.0,0.00020727,2]
[370106653,1751886647865,-460.0,0.00020756,2]
[370106654,1751886647877,-460.0,0.00020756,2]
[370106655,1751886647886,-1631.33,0.000208,2]
[370106656,1751886647897,-151.0,0.000208,2]
[370106657,1751886647907,-151.0,0.000208,2]
[370106658,1751886647916,-151.0,0.000208,2]
[370106659,1751886647926,-151.0,0.000208,2]
[370106660,1751886647935,-151.0,0.000208,2]
[370106661,1751886647945,-460.0,0.00020829,2]
[370106662,1751886647954,-578.48,0.00020829,2]
[370106663,1751886647963,-460.0,0.00020829,2]
[370106664,1751886647973,-460.0,0.00020831,2]
[370106665,1751886647982,-460.0,0.00020831,2]
[370106666,1751886647993,-460.0,0.00020831,2]
[370106667,1751886648004,-297.57,0.00020831,2]
[370106668,1751886648015,-225.48264013,0.000209,4]
[370106669,1751886648024,-162.0,0.00020974,2]
[370106670,1751886648033,-484.70083974,0.00020989,2]
[370106671,1751886648042,-1409.43,0.00020989,2]
[370106672,1751886648051,-460.0,0.00021001,2]
[370106673,1751886648060,-460.0,0.00021001,2]
[370106674,1751886648069,-460.0,0.00021001,2]
[370106675,1751886648079,-460.0,0.0002103,2]
[370106676,1751886648087,-460.0,0.0002103,2]
[370106677,1751886648097,-460.0,0.00021103,2]
[370106678,1751886648107,-460.0,0.00021103,2]
[370106679,1751886648116,-460.0,0.00021105,2]
[370106680,1751886648126,-460.0,0.00021105,2]
[370106681,1751886648136,-460.0,0.00021105,2]
[370106682,1751886648146,-610.14731004,0.00021216,2]
[370106683,1751886648156,-2000.0,0.00021216,2]
[370106684,1751886648166,-167.920415,0.0002123,2]
[370106685,1751886648176,-1409.43,0.00021263,2]
[370106686,1751886648186,-460.0,0.00021275,2]
[370106687,1751886648196,-460.0,0.00021275,2]
[370106688,1751886648205,-460.0,0.00021275,2]
[370106689,1751886648219,-460.0,0.00021304,2]
[370106690,1751886648228,-460.0,0.00021304,2]
[370106691,1751886648238,-460.0,0.00021377,2]
[370106692,1751886648248,-460.0,0.00021377,2]
[370106693,1751886648258,-460.0,0.00021379,2]
[370106694,1751886648268,-460.0,0.00021379,2]
[370106695,1751886648277,-460.0,0.00021379,2]
[370106696,1751886648287,-151.0,0.00021379,2]
[370106697,1751886648299,-167.920415,0.00021415,2]
[370106698,1751886648309,-1409.43,0.00021537,2]
[370106699,1751886648319,-460.0,0.00021549,2]
[370106700,1751886648328,-460.0,0.00021549,2]
[370106701,1751886648338,-460.0,0.00021549,2]
[370106702,1751886648348,-460.0,0.00021578,2]
[370106703,1751886648357,-460.0,0.00021578,2]
[370106704,1751886648367,-167.920415,0.00021599,2]
[370106705,1751886648377,-460.0,0.00021651,2]
[370106706,1751886648387,-460.0,0.00021651,2]
[370106707,1751886648397,-334.57251241,0.00021653,2]
[370106708,1751886648407,-460.0,0.00021653,2]
[370106709,1751886648416,-151.0,0.00021653,2]
[370106710,1751886648426,-151.0,0.00021653,2]
[370106711,1751886648437,-460.0,0.00021653,2]
[370106712,1751886648446,-189.682315,0.00021653,2]
[370106713,1751886648456,-189.682315,0.00021653,2]
[370106714,1751886648465,-151.0,0.00021653,2]
[370106715,1751886648475,-151.0,0.00021653,2]
[370106716,1751886648485,-151.0,0.00021653,2]
[370106717,1751886648494,-549.20648262,0.00021667,2]
[370106718,1751886648504,-1571.23675183,0.00021764,2]
[370106719,1751886648514,-167.920415,0.00021784,2]
[370106720,1751886648524,-1409.43,0.00021811,2]
[370106721,1751886648534,-460.0,0.00021823,2]
[370106722,1751886648544,-460.0,0.00021823,2]
[370106723,1751886648554,-460.0,0.00021823,2]
[370106724,1751886648564,-460.0,0.00021852,2]
[370106725,1751886648574,-460.0,0.00021852,2]
[370106726,1751886648584,-225.48264013,0.000219,6]
[370106727,1751886648593,-500.0,0.00021913,2]
[370106728,1751886648603,-160.02988921,0.00021913,2]
[370106729,1751886648613,-151.0,0.00021918,2]
[370106730,1751886648622,-151.0,0.00021918,2]
[370106731,1751886648632,-151.0,0.00021918,2]
[370106732,1751886648642,-500.0,0.00021918,2]
[370106733,1751886648652,-500.0,0.00021918,2]
[370106734,1751886648661,-500.0,0.00021918,2]
[370106735,1751886648671,-500.0,0.00021918,2]
[370106736,1751886648680,-263.42189902,0.00021918,2]
[370106737,1751886648690,-500.0,0.00021918,2]
[370106738,1751886648700,-500.0,0.00021918,2]
[370106739,1751886648710,-500.0,0.00021918,2]
[370106740,1751886648719,-500.0,0.00021918,2]
[370106741,1751886648729,-460.0,0.00021925,2]
[370106742,1751886648739,-460.0,0.00021925,2]
[370106743,1751886648749,-460.0,0.00021927,2]
[370106744,1751886648758,-180.2,0.00021927,2]
[370106745,1751886648768,-151.0,0.00021927,7]
[370106746,1751886648777,-167.920415,0.00021969,2]
[370106747,1751886648787,-151.0,0.00021973,2]
[370106748,1751886648798,-200.31382204,0.00021973,2]
[370106749,1751886648808,-151.0,0.00021973,2]
[370106750,1751886648818,-500.0,0.00021973,2]
[370106751,1751886648827,-151.0,0.00021973,2]
[370106752,1751886648837,-151.0,0.00021973,2]
[370106753,1751886648847,-151.53734073,0.00021973,2]
[370106754,1751886648856,-151.0,0.00021973,2]
[370106755,1751886648866,-151.0,0.00021973,2]
[370106756,1751886648876,-500.0,0.00021973,2]
[370106757,1751886648886,-690.642,0.00022,2]
[370106758,1751886648896,-207.4,0.00022,2]
[370106759,1751886648906,-5000.0,0.00022,2]
[370106760,1751886648916,-1500.0,0.00022,2]
[370106761,1751886648926,-500.0,0.00022,2]
[370106762,1751886648936,-1500.0,0.00022,2]
[370106763,1751886648946,-216.53714914,0.00022,2]
[370106764,1751886648956,-500.0,0.00022,2]
[370106765,1751886648966,-1500.0,0.00022,2]
[370106766,1751886648976,-500.0,0.00022,2]
[370106767,1751886648986,-1500.0,0.00022,2]
[370106768,1751886648996,-500.0,0.00022,2]
[370106769,1751886649007,-1500.0,0.00022,2]
[370106770,1751886649016,-500.0,0.00022,2]
[370106771,1751886649026,-1500.0,0.00022,2]
[370106772,1751886649036,-500.0,0.00022,2]
[370106773,1751886649046,-1500.0,0.00022,2]
[370106774,1751886649056,-500.0,0.00022,2]
[370106775,1751886649066,-1500.0,0.00022,2]
[370106776,1751886649076,-500.0,0.00022,2]
[370106777,1751886649087,-1500.0,0.00022,2]
[370106778,1751886649097,-500.0,0.00022,2]
[370106779,1751886649107,-1500.0,0.00022,2]
[370106780,1751886649117,-500.0,0.00022,2]
[370106781,1751886649127,-500.0,0.00022,2]
[370106782,1751886649138,-151.0,0.00022,2]
[370106783,1751886649148,-151.0,0.00022,2]
[370106784,1751886649158,-1500.0,0.00022,2]
[370106785,1751886649168,-151.0,0.00022,2]
[370106786,1751886649178,-151.0,0.00022,2]
[370106787,1751886649188,-151.0,0.00022,2]
[370106788,1751886649197,-151.0,0.00022,2]
[370106789,1751886649210,-151.0,0.00022,2]
[370106790,1751886649220,-151.0,0.00022,2]
[370106791,1751886649229,-151.0,0.00022,2]
[370106792,1751886649238,-151.0,0.00022,2]
[370106793,1751886649248,-151.0,0.00022,2]
[370106794,1751886649258,-151.0,0.00022,2]
[370106795,1751886649268,-151.0,0.00022,2]
[370106796,1751886649277,-151.0,0.00022,2]
[370106797,1751886649286,-151.0,0.00022,2]
[370106798,1751886649296,-151.0,0.00022,2]
[370106799,1751886649305,-151.0,0.00022,2]
[370106800,1751886649315,-151.0,0.00022,2]
[370106801,1751886649324,-151.0,0.00022,2]
[370106802,1751886649334,-151.0,0.00022,2]
[370106803,1751886649344,-151.0,0.00022,2]
[370106804,1751886649353,-151.0,0.00022,2]
[370106805,1751886649363,-151.0,0.00022,2]
[370106806,1751886649373,-151.0,0.00022,2]
[370106807,1751886649383,-151.0,0.00022,2]
[370106808,1751886649392,-151.0,0.00022,2]
[370106809,1751886649402,-151.0,0.00022,2]
[370106810,1751886649411,-151.0,0.00022,2]
[370106811,1751886649421,-151.0,0.00022,2]
[370106812,1751886649431,-151.0,0.00022,2]
[370106813,1751886649441,-151.0,0.00022,2]
[370106814,1751886649450,-151.0,0.00022,2]
[370106815,1751886649460,-151.0,0.00022,2]
[370106816,1751886649470,-151.0,0.00022,2]
[370106817,1751886649480,-151.0,0.00022,2]
[370106818,1751886649490,-151.0,0.00022,2]
[370106819,1751886649499,-151.0,0.00022,2]
[370106820,1751886649509,-151.0,0.00022,2]
[370106821,1751886649519,-253.876506,0.00022,7]
[370106822,1751886649529,-89715.89,0.00022,2]
[370106823,1751886649541,-40158.12,0.00022,7]
[370106824,1751886649551,-2289.95,0.00022,7]
[370106825,1751886649561,-249.854843,0.00022,7]
[370106826,1751886649571,-596.114482,0.00022,7]
[370106827,1751886649580,-151.0,0.00022,7]
[370106828,1751886649590,-596.114482,0.00022,7]
[370106829,1751886649600,-151.0,0.00022,7]
[370106830,1751886649611,-151.0,0.00022,7]
[370106831,1751886649620,-151.0,0.00022,7]
[370106832,1751886649630,-151.0,0.00022,7]
[370106833,1751886649639,-151.0,0.00022,7]
[370106834,1751886649649,-151.0,0.00022,7]
[370106835,1751886649658,-151.0,0.00022,7]
[370106836,1751886649667,-151.0,0.00022,7]
[370106837,1751886649677,-151.0,0.00022,7]
[370106838,1751886649686,-151.0,0.00022,7]
[370106839,1751886649696,-151.0,0.00022,7]
[370106840,1751886649706,-185.004279,0.00022,7]
[370106841,1751886649715,-151.0,0.00022,7]
[370106842,1751886649724,-151.0,0.00022,7]
[370106843,1751886649734,-151.0,0.00022,7]
[370106844,1751886649743,-180.002054,0.00022,7]
[370106845,1751886649753,-151.0,0.00022,7]
[370106846,1751886649762,-151.0,0.00022,7]
[370106847,1751886649772,-223.597279,0.00022,7]
[370106848,1751886649782,-223.597279,0.00022,7]
[370106849,1751886649793,-223.597279,0.00022,7]
[370106850,1751886649802,-223.597279,0.00022,7]
[370106851,1751886649811,-151.0,0.00022,7]
[370106852,1751886649821,-151.0,0.00022,7]
[370106853,1751886649830,-151.0,0.00022,7]
[370106854,1751886649840,-222.542961,0.00022,7]
[370106855,1751886649849,-548.841758,0.00022,2]
[370106856,1751886649859,-548.841758,0.00022,2]
[370106857,1751886649869,-548.841758,0.00022,2]
[370106858,1751886649879,-548.841758,0.00022,2]
[370106859,1751886649888,-151.0,0.00022,7]
[370106860,1751886649898,-151.0,0.00022,7]
[370106861,1751886649911,-151.0,0.00022,7]
[370106862,1751886649920,-151.0,0.00022,7]
[370106863,1751886649930,-151.0,0.00022,7]
[370106864,1751886649939,-151.0,0.00022,7]
[370106865,1751886649948,-189.263538,0.00022,7]
[370106866,1751886649958,-189.263538,0.00022,7]
[370106867,1751886649967,-151.0,0.00022,7]
[370106868,1751886649977,-151.0,0.00022,7]
[370106869,1751886649986,-848.27993403,0.00022,7]
[370106870,1751886649995,-151.0,0.00022,7]
[370106871,1751886650005,-151.0,0.00022,7]
[370106872,1751886650015,-189.263538,0.00022,7]
[370106873,1751886650024,-189.263538,0.00022,7]
[370106874,1751886650034,-160.0,0.00022,7]
[370106875,1751886650044,-214.06929976,0.00022,7]
[370106876,1751886650054,-280.140339,0.00022,7]
[370106877,1751886650063,-280.140339,0.00022,7]
[370106879,1751886650072,-280.140339,0.00022,7]
[370106880,1751886650081,-280.140339,0.00022,7]
[370106882,1751886650091,-378.0,0.00022,2]
[370106883,1751886650100,-259.230168,0.00022,7]
[370106884,1751886650109,-259.230168,0.00022,7]
[370106885,1751886650119,-259.230168,0.00022,7]
[370106886,1751886650128,-259.230168,0.00022,7]
[370106887,1751886650137,-151.0,0.00022,7]
[370106888,1751886650147,-151.0,0.00022,7]
[370106889,1751886650157,-273.593835,0.00022,7]
[370106890,1751886650167,-273.593835,0.00022,7]
[370106891,1751886650176,-273.593835,0.00022,7]
[370106892,1751886650185,-273.593835,0.00022,7]
[370106893,1751886650195,-241.069638,0.00022,7]
[370106894,1751886650205,-12584.46609586,0.00022,7]
[370106895,1751886650218,-189.682315,0.00022,7]
[370106896,1751886650228,-189.682315,0.00022,7]
[370106897,1751886650237,-151.0,0.00022,7]
[370106898,1751886650247,-151.0,0.00022,7]
[370106899,1751886650258,-151.0,0.00022,7]
[370106900,1751886650268,-170.0,0.00022,2]
[370106901,1751886650278,-151.0,0.00022,7]
[370106902,1751886650288,-151.0,0.00022,7]
[370106903,1751886650298,-151.0,0.00022,2]
[370106904,1751886650308,-500.0,0.00022,2]
[370106905,1751886650319,-186.53348416,0.00022,2]
[370106906,1751886650329,-500.0,0.00022,2]
[370106907,1751886650339,-151.0,0.00022028,2]
[370106908,1751886650349,-500.0,0.00022028,2]
[370106909,1751886650359,-500.0,0.00022028,2]
[370106910,1751886650369,-500.0,0.0002205,2]
[370106911,1751886650380,-500.0,0.0002205,2]
[370106912,1751886650390,-500.0,0.0002205,2]
[370106913,1751886650400,-500.46494259,0.0002205,2]
[370106914,1751886650411,-500.0,0.0002205,2]
[370106915,1751886650420,-500.0,0.0002205,2]
[370106916,1751886650430,-501.01682281,0.0002205,2]
[370106917,1751886650440,-500.0,0.0002205,2]
[370106918,1751886650450,-508.31206158,0.0002205,2]
[370106919,1751886650460,-500.0,0.0002205,2]
[370106920,1751886650470,-501.8141145,0.0002205,2]
[370106921,1751886650480,-500.0,0.0002205,2]
[370106922,1751886650491,-500.0,0.0002205,2]
[370106923,1751886650501,-500.0,0.0002205,2]
[370106924,1751886650511,-500.0,0.0002205,2]
[370106925,1751886650521,-500.0,0.0002205,2]
[370106926,1751886650531,-600.0,0.0002205,2]
[370106927,1751886650541,-612.39333012,0.0002205,2]
[370106928,1751886650551,-151.0,0.00022055,2]
[370106929,1751886650561,-500.0,0.00022055,2]
[370106930,1751886650572,-500.0,0.00022055,2]
[370106931,1751886650582,-588.26561565,0.00022061,2]
[370106932,1751886650593,-255.0,0.00022061,2]
[370106933,1751886650603,-255.0,0.00022061,2]
[370106934,1751886650613,-255.0,0.00022061,2]
[370106935,1751886650624,-255.0,0.00022061,2]
[370106936,1751886650634,-352.61976986,0.00022061,2]
[370106937,1751886650765,-1142.61646569,0.0002208,2]
[370106938,1751886650775,-151.0,0.00022083,2]
[370106939,1751886650784,-500.0,0.00022083,2]
[370106940,1751886650793,-500.0,0.00022083,2]
[370106941,1751886650804,-1409.43,0.00022085,2]
[370106942,1751886650816,-460.0,0.00022097,2]
[370106943,1751886650825,-460.0,0.00022097,2]
[370106944,1751886650834,-460.0,0.00022097,2]
[370106945,1751886650843,-61267.92000399,0.00022103,2]
[370106946,1751886650853,-245.0,0.0002211,2]
[370106947,1751886650863,-500.0,0.0002211,2]
[370106948,1751886650872,-500.0,0.0002211,2]
[370106949,1751886650881,-460.0,0.00022126,2]
[370106950,1751886650890,-460.0,0.00022126,2]
[370106951,1751886650900,-500.0,0.00022137,2]
[370106952,1751886650909,-500.0,0.00022137,2]
[370106953,1751886650918,-167.920415,0.00022153,2]
[370106954,1751886650927,-500.0,0.00022165,2]
[370106955,1751886650937,-256.73739429,0.00022165,2]
[370106956,1751886650946,-500.0,0.00022192,2]
[370106957,1751886650955,-298.78,0.00022199,2]
[370106958,1751886650963,-460.0,0.00022199,2]
[370106959,1751886650973,-460.0,0.00022201,2]
[370106960,1751886650982,-500.0,0.0002222,2]
[370106961,1751886650991,-637.17210654,0.00022247,2]
[370106962,1751886651001,-175.81296943,0.00022284,2]
[370106963,1751886651011,-167.920415,0.00022338,2]
[370106964,1751886651020,-1409.43,0.00022359,2]
[370106965,1751886651030,-460.0,0.00022371,2]
[370106966,1751886651039,-460.0,0.00022371,2]
[370106967,1751886651049,-460.0,0.00022371,2]
[370106968,1751886651059,-151.0,0.00022371,7]
[370106969,1751886651069,-460.0,0.000224,2]
[370106970,1751886651078,-572.50471894,0.000224,2]
[370106971,1751886651087,-313.94577453,0.0002246,2]
[370106972,1751886651099,-151.0,0.00022461,7]
[370106973,1751886651108,-151.0,0.00022461,7]
[370106974,1751886651117,-189.682315,0.00022461,7]
[370106975,1751886651126,-189.682315,0.00022461,7]
[370106976,1751886651135,-151.0,0.00022461,7]
[370106977,1751886651145,-234.914972,0.00022461,7]
[370106978,1751886651155,-460.0,0.00022473,2]
[370106979,1751886651165,-460.0,0.00022475,2]
[370106980,1751886651174,-167.920415,0.00022522,2]
[370106981,1751886651184,-1000.0,0.00022598,2]
[370106982,1751886651193,-500.0,0.00022598,2]
[370106983,1751886651204,-1000.0,0.00022598,2]
[370106984,1751886651218,-1081.53029727,0.00022598,2]
[370106985,1751886651227,-1000.0,0.00022598,2]
[370106986,1751886651236,-1137.30663764,0.00022598,2]
[370106987,1751886651245,-222.04728116,0.00022598,2]
[370106988,1751886651255,-1000.0,0.00022598,2]
[370106989,1751886651264,-1000.0,0.00022598,2]
[370106990,1751886651273,-334.476543,0.00022598,2]
[370106991,1751886651282,-1200.0,0.00022598,2]
[370106992,1751886651291,-208.952654,0.00022603,2]
[370106993,1751886651301,-1409.43,0.00022633,2]
[370106994,1751886651310,-460.0,0.00022645,2]
[370106995,1751886651320,-460.0,0.00022645,2]
[370106996,1751886651329,-460.0,0.00022645,2]
[370106997,1751886651338,-596.114482,0.00022674,7]
[370106998,1751886651347,-596.114482,0.00022674,7]
[370106999,1751886651357,-460.0,0.00022674,2]
[370107000,1751886651366,-167.920415,0.00022707,2]
[370107001,1751886651375,-460.0,0.00022747,2]